Cogmind - Beta 17.1 @@@ ROGUE MODE // 2026.08.25 @ 22:17:29 Player: TheSkyeDoctor Result: Destroyed by 41-6TW(R) with Subdweller Machine Gun Performance ------------- Evolutions (0) 0 Regions Visited (2) 400 Robots Destroyed (13) 65 Value Destroyed (215) 215 Prototype IDs (1) 20 Alien Tech Used (0) 0 Bonus (5000) 5000 TOTAL SCORE: 5700 Bonus ------- Prayed to X0-1V1 5000 Cogmind --------- Core Integrity 0/250 Matter 285/1000 Energy 117/1500 System Corruption 0% Temperature Cool (0) Movement Core (50) Location -10/Subcaves Parts ------- > --- POWER (1) -------- (None) > --- PROPULSION (2) --- (None) > --- UTILITY (2) ------ Signal Interpreter X0-1V1's Piety Tracker > --- WEAPON (3) ------- Mace > --- INVENTORY (5) ---- Light Ion Engine Improved Terrain Scanner Beam Rifle Battle Cannon Maul Peak State ------------ > --- POWER ------------ Ion Engine > --- PROPULSION ------- Wheel Compact Wheel > --- UTILITY ---------- Large Storage Unit X0-1V1's Piety Tracker > --- WEAPON ----------- Assault Rifle Maul > --- INVENTORY -------- Light Ion Engine Wheel Signal Interpreter Improved Terrain Scanner Tractor Beam Spread Laser Assault Rifle Light Assault Rifle Grenade Launcher [Rating: 21] Favorites ----------- Power Ion Engine Engine Ion Engine Propulsion Wheel Wheel Wheel Utility Large Storage Unit Device Tractor Beam Storage Large Storage Unit Processor Signal Interpreter Weapon Assault Rifle Ballistic Gun Assault Rifle Impact Weapon Maul Build | -11 -10 -10 ------- Run | Yrd Mat Sub Slots Evolved . | . . . Power . | . . . Propulsion . | . . . Utility . | . . . Weapon . | . . . Parts Attached 16 | 9 4 3 Power 2 | 2 . . Engine 2 | 2 . . Core . | . . . Reactor . | . . . Propulsion 5 | 3 1 1 Treads . | . . . Leg . | . . . Wheel 5 | 3 1 1 Hover . | . . . Flight . | . . . Utility 6 | 2 2 2 Device 3 | 1 1 1 Storage 2 | 1 1 . Processor 1 | . . 1 Hackware . | . . . Protection . | . . . Artifact . | . . . Weapon 3 | 2 1 . Energy Gun . | . . . Energy Cannon . | . . . Ballistic Gun 2 | 2 . . Ballistic Cannon . | . . . Launcher . | . . . Special Weapon . | . . . Impact Weapon 1 | . 1 . Slashing Weapon . | . . . Piercing Weapon . | . . . Special Melee Weapon . | . . . Unidentified Prototypes 1 | . 1 . Parts Lost 7 | . 1 6 Power 1 | . . 1 Propulsion 4 | . 1 3 Utility 1 | . . 1 Weapon 1 | . . 1 Highest Loss Streak 3 | . 1 3 To Critical Strikes . | . . . Average Backups 7 | 1 7 8 Power . | . 1 1 Propulsion . | . 1 . Utility 1 | . 1 1 Weapon 4 | . 3 5 Tool/Special . | . . . Unused Backups 7 | . . 7 Power . | . . . Propulsion . | . . . Utility 1 | . . 1 Weapon 6 | . . 6 Tool/Special . | . . . Average Slot Usage (%) 87 | . 100 69 Engine 8 | . 14 . Wheel 24 | . 28 19 Device 13 | . 14 12 Storage 12 | . 14 9 Processor 1 | . . 4 Ballistic Gun 16 | . 19 11 Impact Weapon 9 | . 8 10 Peak Build Rating 21 | 7 21 21 Average Rating 11 | 4 8 17 On Entrance 9 | . 7 21 Avg Prop Armor Cover (%) . | . . . Naked Turns . | . . . Heaviest Build 31 | 15 31 31 Greatest Support 26 | 26 26 26 Greatest Overweight (x) 3 | 1 3 1 Average Overweight (x) . | . . . Largest Inventory Capacity 15 | 8 15 15 Average Capacity 12 | 6 14 11 Most Carried 11 | 4 9 11 Average Carried 7 | 1 7 8 Final Capacity 15 | 8 15 5 Final Carried 8 | 4 8 5 Class Distribution -------------------- 100% | Mutant Dominant Class ---------------- Mutant | -10/Materials Mutant | -10/Subcaves Resources | -11 -10 -10 ----------- Run | Yrd Mat Sub Matter Collected 435 | 326 50 59 Remotely 176 | 126 50 . Salvage Created 360 | 103 205 52 Parts 22 | 7 11 4 Haulers Intercepted . | . . . Recyclers Shooed 1 | 1 . . Parts Field Recycled . | . . . Retrieved Matter . | . . . Parts Self-Destructed . | . . . Prevented . | . . . Parts Restored . | . . . Kills | -11 -10 -10 ------- Run | Yrd Mat Sub Combat Hostiles Destroyed 7 | . 6 1 Melee 4 | . 4 . Guns 1 | . . 1 Classes Destroyed 7 | 2 4 1 Worker 1 | . 1 . Tunneler 2 | 2 . . Recycler 2 | 1 1 . Operator 1 | . 1 . Swarmer 3 | . 3 . Grunt 3 | . 3 . Subdweller 1 | . . 1 Best Kill Streak 4 | 3 4 1 Combat Bots Only 4 | . 4 1 Max Kills in Single Turn 1 | 1 1 1 Gunslinging . | . . . Exploded . | . . . Melee 1 | . 1 . Uniques/NPCs Destroyed . | . . . Combat | -11 -10 -10 -------- Run | Yrd Mat Sub Hostile Shots Fired 75 | . 40 35 Missed 21 | . 12 9 Hits 54 | . 28 26 Projectile 54 | . 28 26 Critical Strikes 1 | . . 1 Damage Taken 796 | . 273 523 Core 308 | . 73 235 Absorbed by Shields . | . . . Ignored by Resistances 53 | . . 53 Core Remaining (%) 100 | 100 . . Volleys Fired 13 | 6 . 7 Largest 2 | 2 . 2 Hottest 40 | 40 . 40 Shots Fired 20 | 12 . 8 Gun 20 | 12 . 8 Cannon . | . . . Launcher . | . . . Special . | . . . Kinetic 20 | 12 . 8 Thermal . | . . . Explosive . | . . . Electromagnetic . | . . . Robot Hit Streak 5 | 5 . 5 Robot Miss Streak 2 | 1 . 2 Penetration Max . | . . . Secondary Targets . | . . . Shots Hit Robots 28 | 9 14 5 Core Hits 9 | 4 3 2 Critical Kills 1 | . 1 . Critical Parts Destroyed 3 | . 3 . Critical Strikes 4 | . 4 . Smash 4 | . 4 . Melee Attacks 32 | . 20 12 Impact 32 | . 20 12 Slashing . | . . . Piercing . | . . . Sneak Attacks 3 | . 3 . Combat Hostiles . | . . . Follow-up Attacks . | . . . Damage Inflicted 913 | 113 736 64 Guns 177 | 113 . 64 Cannons . | . . . Explosions . | . . . Melee 736 | . 736 . Ramming . | . . . Kinetic 177 | 113 . 64 Thermal . | . . . Explosive . | . . . Electromagnetic . | . . . Impact 736 | . 736 . Slashing . | . . . Piercing . | . . . Highest Corruption . | . . . Average Corruption . | . . . Corruption Purged . | . . . Corruption Blocked . | . . . Overload Shots . | . . . Overflow Damage 271 | . 271 . Projectiles . | . . . Explosions . | . . . Melee 271 | . 271 . Knockbacks 2 | . 2 . Impact 2 | . 2 . Kinetic . | . . . Secondary . | . . . Self-Inflicted Damage . | . . . Shots . | . . . Rammed . | . . . Targets Rammed . | . . . Kicked . | . . . Crushed . | . . . Highest Temperature 134 | . . 134 Average Temperature 71 | . . 71 Received Heat Transfer 389 | . 102 287 Siege Activations . | . . . Martial Activations . | . . . Shielding Activations . | . . . Robots Disrupted . | . . . Combat Hostiles . | . . . Robots Corrupted 3 | . 3 . Combat Hostiles 2 | . 2 . Parts Fried 6 | . 6 . Impact Corruptions 9 | . 9 . Robots Melted . | . . . Combat Hostiles . | . . . Parts Melted . | . . . Heat Transferred . | . . . Parts Sabotaged . | . . . Parts Stolen . | . . . Parts Stripped . | . . . Power Chain Reactions . | . . . Alert | -11 -10 -10 ------- Run | Yrd Mat Sub Maximum Alert Level . | . . . Low Security (%) 100 | 100 100 . Level 1 . | . . . Level 2 . | . . . Level 3 . | . . . Level 4 . | . . . Level 5 . | . . . High Security . | . . . Max Security . | . . . Peak Influence 130 | 10 130 . Initial . | . . . Average 40 | 2 48 . Influence Increases 240 | 15 195 30 Destroy 0b10 Robot/C 120 | . 120 . Destroy 0b10 Robot/NC 30 | 15 15 . Destroy Leader 30 | . 30 . Lose Combat Pursuer 60 | . 30 30 Influence Decreases 240 | 15 146 79 Entered New Map 25 | . . 25 Time Decay 195 | 15 136 44 Lost Part 20 | . 10 10 Squads Dispatched 3 | . 3 . Investigation . | . . . Extermination . | . . . Reinforcement 3 | . 3 . Assault . | . . . Garrison . | . . . Intercept . | . . . Searches Triggered . | . . . Construction Impeded . | . . . Haulers Reinforced . | . . . Active Scanning Responses . | . . . Cargo Convoy Interrupts . | . . . Stealth | -11 -10 -10 --------- Run | Yrd Mat Sub Distress Signals . | . . . Communications Jammed . | . . . Distress Signals . | . . . Times Spotted 24 | . 13 11 Peak Tracking Total 4 | . 4 4 Tactical Retreats 5 | . 2 3 Traps | -11 -10 -10 ------- Run | Yrd Mat Sub Traps Triggered 2 | . 2 . Indirectly . | . . . Trap Hack Attempts . | . . . Triggered . | . . . Disarmed . | . . . Reprogrammed . | . . . Reused . | . . . Traps Extracted . | . . . Installed . | . . . Triggered . | . . . Machines | -11 -10 -10 ---------- Run | Yrd Mat Sub Machines Disabled . | . . . Max in Single Turn . | . . . Machines Repaired . | . . . Machines Dismantled . | . . . Machines Sabotaged . | . . . Overloaded Fab Kills . | . . . Hacking | -11 -10 -10 --------- Run | Yrd Mat Sub Machines Accessed . | . . . Terminals . | . . . Fabricators . | . . . Repair Stations . | . . . Recycling Units . | . . . Scanalyzers . | . . . Garrison Access . | . . . Total Hacks . | . . . Successful . | . . . Failed . | . . . Catastrophic . | . . . Database Lockouts . | . . . Manual 1 | . 1 . Terminals . | . . . Fabricators . | . . . Repair Stations . | . . . Recycling Units . | . . . Scanalyzers . | . . . Garrison Access . | . . . Terminal Hacks . | . . . Fabricator Hacks . | . . . Repair Station Hacks . | . . . Recycling Unit Hacks . | . . . Scanalyzer . | . . . Garrison Access Hacks . | . . . Unauthorized Hacks . | . . . Terminals . | . . . Fabricators . | . . . Repair Stations . | . . . Recycling Units . | . . . Scanalyzers . | . . . Garrison Access . | . . . Data Cores Recovered . | . . . Used . | . . . Hacking Detections . | . . . Full Trace Events . | . . . Feedback Events . | . . . Feedback Blocked . | . . . Robot Schematics Acquired . | . . . Robots Built . | . . . Authchips . | . . . Time . | . . . Total Robot Build Rating . | . . . Part Schematics Acquired . | . . . Parts Built . | . . . Authchips . | . . . Time . | . . . Total Part Build Rating . | . . . Part Studies Acquired . | . . . Parts Repaired . | . . . Time . | . . . Parts Recycled . | . . . Recycled Matter . | . . . Retrieved Matter . | . . . Retrieved Components . | . . . Parts Scanalyzed . | . . . Part Schematics Acquired . | . . . Parts Damaged . | . . . Bothacking | -11 -10 -10 ------------ Run | Yrd Mat Sub Used RIF Installer . | . . . Robots Hacked . | . . . Non-combat . | . . . Combat . | . . . Robot Hacks Applied . | . . . Relay Couplers Released . | . . . Fabnet Peak Effective % . | . . . Robots Rewired . | . . . Allies Hacked . | . . . Hacks Repelled . | . . . Allies | -11 -10 -10 -------- Run | Yrd Mat Sub Total Allies 4 | . . 4 Largest Group . | . . . Highest-Rated Group . | . . . Highest-Rated Ally . | . . . Total Orders . | . . . Ally Attacks 3 | . . 3 Total Damage 22 | . . 22 Kills . | . . . Allies Corrupted . | . . . Allies Melted . | . . . X0-1V1 Amusement Gains 28 | . 18 10 Average Entertainment 10 | . 18 10 Good Acts 13 | . . 13 Intel | -11 -10 -10 ------- Run | Yrd Mat Sub Active Infowar (turns) . | . . . Robot Analysis Total . | . . . Derelict Logs Recovered 1 | . . 1 Drone Launches . | . . . Drone Recoveries . | . . . Exploration | -11 -10 -10 ------------- Run | Yrd Mat Sub Turns Passed 825 | 87 423 315 Spaces Moved 698 | 60 290 348 Core 164 | 17 . 147 Treads . | . . . Legs . | . . . Wheels 534 | 43 290 201 Hover . | . . . Flight . | . . . Fastest Speed 50 | 50 80 50 Average Speed 84 | 87 97 74 Slowest Speed 125 | 100 125 115 Overloaded Moves . | . . . Propulsion Burnouts . | . . . Robots Hopped . | . . . Potential Cave-ins . | . . . Cave-ins Triggered . | . . . Exploration Rate (%) 32 | 3 58 37 Regions Visited 2 Branch Regions 1 Pre-discovered Areas 1 | . . 1 Known Exits Taken . | . . . Unknown Exits Taken 2 | 1 1 . Scrap Searched . | . . . Spaces Dug . | . . . Terrain Destroyed . | . . . Melee . | . . . Projectile . | . . . AOE . | . . . Terrain Rammed . | . . . Walls Destroyed . | . . . Machines Disabled . | . . . Actions | -11 -10 -10 --------- Run | Yrd Mat Sub Total 841 | 78 388 375 Wait 66 | . 66 . Move 696 | 59 289 348 Hop . | . . . Pick Up 9 | 3 5 1 Fast Attach 11 | 7 3 1 Attach 2 | . . 2 Detach 1 | . . 1 Swap 7 | 2 3 2 Drop 4 | 1 2 1 Fire 13 | 6 . 7 Melee 32 | . 20 12 Ram . | . . . Kick . | . . . Crush . | . . . Escape Stasis . | . . . Rewire . | . . . Trap . | . . . Miscellaneous . | . . . Route ------- -11/Scrapyard -10/Materials (discovered 3 exits: [*Mat] / [*Min] / [*Sub]) -10/Subcaves (discovered 1 exit: Mat) History --------- Turn | Location | Event 16 | -11/Scrapyard | Discovered new exit (range 16) 88 | -11/Scrapyard | Entered Materials 253 | -10/Materials | Discovered new exit (range 15) 302 | -10/Materials | Discovered new exit (range 6) 305 | -10/Materials | Build established: Mutant 493 | -10/Materials | Discovered new exit (range 3) 506 | -10/Materials | Prayed at D.C.S.S. Altar Unit 511 | -10/Materials | Entered Subcaves 512 | -10/Subcaves | Approached by a straggling Scientist 574 | -10/Subcaves | Shifting Twisted Machinery released Battle Cannon 577 | -10/Subcaves | Shifting Twisted Machinery released Battle Rifle 607 | -10/Subcaves | Identified exit to Materials 607 | -10/Subcaves | X0-1V1 revealed exit location to -8/Materials 646 | -10/Subcaves | X0-1V1 activates XOMVISION 680 | -10/Subcaves | Learned location of Zion (-6) 680 | -10/Subcaves | Met a Zionite searching for "candidates" 725 | -10/Subcaves | Core integrity fell below 50% 753 | -10/Subcaves | Lost 3 parts (2n1w) 777 | -10/Subcaves | Core integrity restored by X0-1V1 (+57) 797 | -10/Subcaves | Weapon slot count permanently improved by X0-1V1 (+1) 799 | -10/Subcaves | Learned Materials emergency access door positions 826 | -10/Subcaves | Core integrity fell below 20% 826 | -10/Subcaves | X0-1V1 sent allied G-34 Mercenary (x4) 826 | -10/Subcaves | Destroyed by 41-6TW(R) with Subdweller Machine Gun Last Messages --------------- 00784_ X0-1V1's Piety Tracker destroyed. 00784_ X0-1V1 is mildly amused. 00797_ X0-1V1: "If I've learned anything from roguelikes, it's that more appendages equals more fun." (permanent +1 Weapon slot) 00799_ Acquired derelict log, extracted data. Data stored: Materials emergency access points. 00800_ TH resistance returns to normal. 00803_ X0-1V1 causes your matter storage to temporarily balloon in size. (+700 matter capacity) 00814_ X0-1V1: "Let the electrons flow!" (+1400 energy capacity) X0-1V1's Piety Tracker suddenly appears amidst shimmering waves of color. 00823_ Acquired X0-1V1's Piety Tracker. 00826_ The cosmic winds blow in a new direction. G-34 Mercenary form resolidifies at new position. 00826_ X0-1V1 guffaws! Map ----- +----------------------------------------------------+ | ?????????????????????????????????????????????????? | | ?????????????????????????????????????????????????? | | ?????????????????????????????????????????????????? | | ?????????????????????????????????????????????????? | | ?????????????????#####???????????????????????????? | | ???????????????### ##????###???????????????????? | | ?????????????### ##??# ###?????????????????? | | ?????????????? ### ??????????????????? | | ?????######???? ### ???????????????????? | | ?????# ##???# ## ???????????????????? | | ###??# ##### #?????????????????????? | | # #### #?????????????????????? | | #?????????????????????? | | ##### ##????????????????????? | | #???### #????????????????????? | | #?????## #????????????????????? | | ## #??????## #???????##???????????? | | #####???????#### g ######## # ??????????? | | #??????????????#R ## ""??????????? | | #??????????????# # ""??????????? | | #????????#####?###R #??????????????? | | ## #??##???## #####RR # #??????????????? | | ## #?## #### # #??????????????? | | ## ##?# g g #??????????????? | | #####??## g ##??????????????? | | #???????# ## ### @ ##???????????????? | | ????????# ## ##?# ## #????????????????? | | ????????# #####??# ###########????????????????? | | ????????#####??????####??????????????????????????? | | ?????????????????????????????????????????????????? | | ?????????????????????????????????????????????????? | | ?????????????????????????????????????????????????? | | ?????????????????????????????????????????????????? | | ?????????????????????????????????????????????????? | | ?????????????????????????????????????????????????? | | ?????????????????????????????????????????????????? | | ?????????????????????????????????????????????????? | | ?????????????????????????????????????????????????? | | ?????????????????????????????????????????????????? | | ?????????????????????????????????????????????????? | | ?????????????????????????????????????????????????? | | ?????????????????????????????????????????????????? | | ?????????????????????????????????????????????????? | | ?????????????????????????????????????????????????? | | ?????????????????????????????????????????????????? | | ???????????????